{"text_format":"1","workbook":"xlsx","n_sheets":6,"sheets":["入力シート","入力シート_サンプル","リスト","設置廃止届出書","変更届出書","DATA"],"not_rendered":{"charts":0,"images":0,"macros":1,"external_links":0,"defined_names":78,"comments":0,"pivot_tables":0},"unopened":[],"bounds":{"document_bytes":16777216,"sheet_cells":100000,"rows_first":2000,"rows_last":500,"rows_between":2000,"halvings":0,"cell_chars":16384,"cell_head_chars":4096},"cells_cut":0,"cells_raw":0,"read":"whole","date_system":"1900"}

{"sheet":"入力シート","index":0,"n_rows":34,"n_cols":3,"rows_kept":34,"cut":false,"hidden":false,"merged":[[25,0,25,1],[10,0,10,1],[15,0,15,1],[16,0,16,1]]}
["入力項目名",null,"入力値"]
["提出日"]
["届出者住所郵便番号"]
["届出者住所（法人にあっては、主たる事務所の所在地）"]
["届出者電話番号"]
["届出者名（法人にあっては、その名称）"]
["届出者の英名"]
["代表者氏名"]
["輸入者コードの種別（プルダウンから選択）"]
["輸入者コード（「輸入者コードなし」以外を選択した場合のみ入力）"]
["利用者コード（届出者以外の者が入出力装置の管理をする場合にあっては、その者の利用者コードを入力）"]
["届出種別（プルダウンから選択）"]
["暗証記号（アルファベットのI（アイ）から始まる英数字12桁）"]
["入出力装置の設置場所郵便番号"]
["入出力装置の設置場所"]
["入出力装置の機器名称（使用しているPCのメーカー名及び機種名を入力）"]
["入出力装置の型式番号（PC底面のシール等に記載されている型式番号を入力）"]
["届出者以外の者が入出力装置の管理をする場合は以下を入力"]
[null,"・管理者名（法人にあっては、その名称）"]
[null,"・代表者氏名"]
[null,"・管理者住所郵便番号"]
[null,"・管理者住所（法人にあっては、主たる事務所の所在地）"]
[null,"・電話番号"]
["特定通知の同意の有無（届出種別が設置届出の場合にプルダウンから選択）"]
["備考"]
["届出種別が「変更届出」の場合は以下を入力\n暗証記号を変更する場合は登録中の入出力装置を廃止届出で廃止し、\n新たに設置届出を提出してください。\n\n"]
[null,"変更内容未選択"]
[null,"変更内容未選択"]
[null,"変更内容未選択"]
[null,"変更内容未選択"]
[null,"変更内容未選択"]
[null,"変更内容未選択"]
[null,"変更内容未選択"]
[null,"変更する入出力装置の設置届出書を届け出た年月日"]

{"sheet":"入力シート_サンプル","index":1,"n_rows":34,"n_cols":3,"rows_kept":34,"cut":false,"hidden":false,"merged":[[10,0,10,1],[25,0,25,1],[16,0,16,1],[15,0,15,1],[1,0,1,1]]}
["入力項目名",null,"入力値（※改行不可）"]
["提出日",null,"2025-07-14"]
["届出者住所郵便番号",null,"101-0051"]
["届出者住所（法人にあっては、主たる事務所の所在地）",null,"東京都千代田区神田神保町x-x-x"]
["届出者電話番号",null,"000-000-0000"]
["届出者名（法人にあっては、その名称）",null,"○○××合同会社"]
["届出者の英名",null,"abcdefghijklmn co.,ltd."]
["代表者氏名",null,"厚生　労働"]
["輸入者コードの種別（プルダウンから選択）",null,"法人番号"]
["輸入者コード（「輸入者コードなし」以外を選択した場合のみ入力）",null,1234567891011]
["利用者コード（届出者以外の者が入出力装置の管理をする場合にあっては、その者の利用者コードを入力）",null,"ABCDE"]
["届出種別（プルダウンから選択）",null,"変更届出"]
["暗証記号（アルファベットのI（アイ）から始まる英数字12桁）",null,"IABCDEFGH123"]
["入出力装置の設置場所郵便番号",null,"101-0051"]
["入出力装置の設置場所",null,"東京都千代田区神田神保町x-x-x"]
["入出力装置の機器名称（使用しているPCのメーカー名及び機種名を入力）",null,"①FUJI VD34001,②FUJI VD34001,③FUJI VD34001,④FUJI VD34001,⑤FUJI FVD34001,⑥FUJI VD34001"]
["入出力装置の型式番号（PC底面のシール等に記載されている型式番号を入力）",null,"①A8301581,②A8301582,③A8301583,④A8301584,⑤A8301585,⑥A8301586"]
["届出者以外の者が入出力装置の管理をする場合は以下を入力"]
[null,"・管理者名（法人にあっては、その名称）","○×運輸株式会社"]
[null,"・代表者氏名","厚労　太郎"]
[null,"・管理者住所郵便番号","101-0051"]
[null,"・管理者住所（法人にあっては、主たる事務所の所在地）","東京都千代田区神田神保町x-x-x"]
[null,"・電話番号","000-0000-0000"]
["特定通知の同意の有無（届出種別が設置届出の場合にプルダウンから選択）"]
["備考",null,"NACCS端末使用"]
["届出種別が「変更届出」の場合は以下を入力\n暗証記号を変更する場合は登録中の入出力装置を廃止届出で廃止し、\n新たに設置届出を提出してください。"]
[null,"変更内容未選択"]
[null,"届出者の氏名及び住所"]
[null,"入出力装置の設置場所、機器名称及び型式番号"]
[null,"届出者以外の者が入出力装置の管理をする場合にあっては、その者の氏名及び住所"]
[null,"輸入者コード（変更前の情報が必要）※"]
[null,"利用者コード（変更前の情報が必要）※"]
[null,"その他（上記以外）"]
[null,"変更する入出力装置の設置届出書を届け出た年月日","2022-04-07"]

{"sheet":"リスト","index":2,"n_rows":8,"n_cols":4,"rows_kept":8,"cut":false,"hidden":true,"merged":[]}
["輸入者コードの種別","届出種別","特定通知の同意の有無","変更内容"]
["輸入者コードなし","設置届出","有","変更内容未選択"]
["法人番号","廃止届出","無","届出者の氏名及び住所"]
["JASTPROコード","変更届出",null,"入出力装置の設置場所、機器名称及び型式番号"]
["税関発給コード（個人）",null,null,"届出者以外の者が入出力装置の管理をする場合にあっては、その者の氏名及び住所"]
["税関発給コード（法人）",null,null,"輸入者コード（変更前の情報が必要）※"]
[null,null,null,"利用者コード（変更前の情報が必要）※"]
[null,null,null,"その他（上記以外）"]

{"sheet":"設置廃止届出書","index":3,"n_rows":37,"n_cols":26,"rows_kept":37,"cut":false,"hidden":true,"merged":[[34,4,34,7],[35,4,35,7],[34,8,34,10],[35,8,35,10],[1,16,1,17],[2,1,2,6],[3,11,3,13],[3,14,3,22],[4,12,4,14],[4,15,4,22],[5,11,5,13],[5,14,5,22],[6,12,6,14],[6,15,6,22],[7,12,7,14],[7,15,7,22],[18,2,18,5],[13,1,13,21],[15,11,15,12],[12,1,12,22],[8,12,8,14],[8,15,8,22],[9,12,9,14],[9,15,9,22],[11,8,11,15],[28,9,28,22],[28,2,28,8],[17,9,17,22],[18,9,18,22],[19,9,19,22],[20,9,20,22],[27,2,27,8],[23,3,23,6],[24,4,24,6],[25,3,25,6],[26,4,26,6],[23,7,23,22],[24,7,24,22],[25,7,25,22],[26,7,26,22],[17,2,17,8]]}
[]
[null,null,null,null,null,null,null,null,null,null,null,null,null,null,null,null,{"$f":"YEAR(入力シート!届出予定日)","v":1900},null,"年",{"$f":"MONTH(入力シート!届出予定日)","v":1},"月",{"$f":"DAY(入力シート!届出予定日)","v":0},"日"]
[null,"厚 生 労 働 大 臣 殿"]
[null,null,null,null,null,null,null,null,null,null,null,"届出者住所",null,null,{"$f":"入力シート!届出者住所","v":0}]
[null,null,null,null,null,null,null,null,null,null,null,null,"電話番号",null,null,{"$f":"入力シート!届出者電話番号","v":0}]
[null,null,null,null,null,null,null,null,null,null,null,"届出者名",null,null,{"$f":"入力シート!届出者名","v":0}]
[null,null,null,null,null,null,null,null,null,null,null,null,"届出者の英名",null,null,{"$f":"入力シート!届出者の英名","v":0}]
[null,null,null,null,null,null,null,null,null,null,null,null,"代表者氏名",null,null,{"$f":"入力シート!代表者氏名","v":0}]
[null,null,null,null,null,null,null,null,null,null,null,null,"輸入者コード",null,null,{"$f":"IF(入力シート!輸入者コード=\"\",\"輸入者コードなし\",入力シート!輸入者コード)","v":"輸入者コードなし"}]
[null,null,null,null,null,null,null,null,null,null,null,null,"利用者コード",null,null,{"$f":"入力シート!利用者コード","v":0}]
[]
[null,null,null,null,null,null,null,null,{"$f":"\"入出力装置\"&入力シート!届出種別","v":"入出力装置"}]
[null,{"$f":"\"食品衛生法施行規則第３３条の第２項の規定により、入出力装置の\"&SUBSTITUTE(入力シート!C12,\"届出\",\"\")&\"に係る\"","v":"食品衛生法施行規則第３３条の第２項の規定により、入出力装置のに係る"}]
[null,"下記事項を届け出ます。"]
[]
[null,null,null,null,null,null,null,null,null,null,null,"記"]
[]
[null,1,"暗証記号",null,null,null,null,null,null,{"$f":"入力シート!暗証記号","v":0}]
[null,2,"入出力装置の",null,null,null,"設置場所",null,null,{"$f":"入力シート!入出力装置の設置場所","v":0}]
[null,null,null,null,null,null,"機器名称",null,null,{"$f":"入力シート!入出力装置の機器名称","v":0}]
[null,null,null,null,null,null,"型式番号",null,null,{"$f":"入力シート!入出力装置の型式番号","v":0}]
[null,3,"届出者以外の者が入出力装置の管理をする場合にあっては、その者の氏名及び住所等"]
[null,null,"(法人にあっては、その名称及び主たる事務所の所在地)"]
[null,null,null,"管理者名",null,null,null,{"$f":"IF(入力シート!管理者名=\"\",\"\",入力シート!管理者名)","v":""}]
[null,null,null,null,"代表者氏名",null,null,{"$f":"IF(入力シート!届出者以外の代表者氏名=\"\",\"\",入力シート!届出者以外の代表者氏名)","v":""}]
[null,null,null,"管理者住所",null,null,null,{"$f":"IF(入力シート!管理者住所=\"\",\"\",入力シート!管理者住所)","v":""}]
[null,null,null,null,"電話番号",null,null,{"$f":"IF(入力シート!管理者電話番号=\"\",\"\",入力シート!管理者電話番号)","v":""}]
[null,4,"特定通知の同意の有無",null,null,null,null,null,null,null,null,"有",null,"無",null,null,null,null,null,null,null,null,null,null,null,"※○は「保存」ボタン押下時に設定されます"]
[null,5,"備考",null,null,null,null,null,null,{"$f":"IF(入力シート!備考=\"\",\"\",入力シート!備考)","v":""}]
[]
[null,"注",1,"輸入者コードとは、JASTPROコード、税関発給コード、法人番号を指す。"]
[null,"注",2,"記名押印に代えて、署名することができる。"]
[null,"注",3,"暗証記号については、計12桁として記載し、数字の0(ゼロ)は「0」、"]
[null,null,null,"ローマ字のO(オー)は「O」の様に記載すること。"]
[null,null,null,"例)","IA00BBBB",null,null,null,"CCCC",null,null,null,"(計12桁)"]
[null,null,null,null,"ユーザー名",null,null,null,"パスワード"]
[null,"注",4,"特定通知の同意の有無については、有　または　無のどちらかを〇で囲むこと。"]

{"sheet":"変更届出書","index":4,"n_rows":32,"n_cols":32,"rows_kept":32,"cut":false,"hidden":true,"merged":[[18,2,18,5],[18,9,18,22],[19,9,19,22],[20,9,20,22],[23,3,23,6],[23,7,23,22],[28,2,28,8],[27,9,27,22],[24,4,24,6],[24,7,24,22],[25,3,25,6],[25,7,25,22],[26,4,26,6],[26,7,26,22],[27,2,27,8],[28,9,28,22],[17,2,17,8],[17,9,17,22],[8,12,8,14],[8,15,8,22],[9,12,9,14],[9,15,9,22],[11,6,11,17],[13,1,13,21],[15,11,15,12],[12,1,12,5],[12,6,12,22],[1,16,1,17],[2,1,2,6],[3,11,3,13],[3,14,3,22],[4,12,4,14],[4,15,4,22],[5,11,5,13],[5,14,5,22],[6,12,6,14],[6,15,6,22],[7,12,7,14],[7,15,7,22]]}
[]
[null,null,null,null,null,null,null,null,null,null,null,null,null,null,null,null,{"$f":"YEAR(入力シート!届出予定日)","v":1900},null,"年",{"$f":"MONTH(入力シート!届出予定日)","v":1},"月",{"$f":"DAY(入力シート!届出予定日)","v":0},"日"]
[null,"厚 生 労 働 大 臣 殿"]
[null,null,null,null,null,null,null,null,null,null,null,"届出者住所",null,null,{"$f":"入力シート!届出者住所","v":0}]
[null,null,null,null,null,null,null,null,null,null,null,null,"電話番号",null,null,{"$f":"入力シート!届出者電話番号","v":0}]
[null,null,null,null,null,null,null,null,null,null,null,"届出者名",null,null,{"$f":"入力シート!届出者名","v":0}]
[null,null,null,null,null,null,null,null,null,null,null,null,"届出者の英名",null,null,{"$f":"入力シート!届出者の英名","v":0}]
[null,null,null,null,null,null,null,null,null,null,null,null,"代表者氏名",null,null,{"$f":"入力シート!代表者氏名","v":0}]
[null,null,null,null,null,null,null,null,null,null,null,null,"輸入者コード",null,null,{"$f":"IF(入力シート!輸入者コード=\"\",\"輸入者コードなし\",入力シート!輸入者コード)","v":"輸入者コードなし"}]
[null,null,null,null,null,null,null,null,null,null,null,null,"利用者コード",null,null,{"$f":"入力シート!利用者コード","v":0}]
[]
[null,null,null,null,null,null,"入出力装置の届出に係る変更届出書"]
[null,{"$f":"入力シート!変更届日付","v":"00:00:00"},null,null,null,null,"に届け出た下記入出力装置について変更がありましたので、"]
[null,"その内容を届け出ます。"]
[]
[null,null,null,null,null,null,null,null,null,null,null,"記"]
[]
[null,1,"暗証記号",null,null,null,null,null,null,{"$f":"入力シート!暗証記号","v":0}]
[null,2,"入出力装置の",null,null,null,"設置場所",null,null,{"$f":"入力シート!入出力装置の設置場所","v":0}]
[null,null,null,null,null,null,"機器名称",null,null,{"$f":"入力シート!入出力装置の機器名称","v":0}]
[null,null,null,null,null,null,"型式番号",null,null,{"$f":"入力シート!入出力装置の型式番号","v":0}]
[null,3,"届出者以外の者が入出力装置の管理をする場合にあっては、その者の氏名及び住所等"]
[null,null,"(法人にあっては、その名称及び主たる事務所の所在地)"]
[null,null,null,"管理者名",null,null,null,{"$f":"IF(入力シート!管理者名=\"\",\"\",入力シート!管理者名)","v":""}]
[null,null,null,null,"代表者氏名",null,null,{"$f":"IF(入力シート!届出者以外の代表者氏名=\"\",\"\",入力シート!届出者以外の代表者氏名)","v":""}]
[null,null,null,"管理者住所",null,null,null,{"$f":"IF(入力シート!管理者住所=\"\",\"\",入力シート!管理者住所)","v":""}]
[null,null,null,null,"電話番号",null,null,{"$f":"IF(入力シート!管理者電話番号=\"\",\"\",入力シート!管理者電話番号)","v":""},null,null,null,null,null,null,null,null,null,null,null,null,null,null,null,null,null,"↓数式埋め込んでます"]
[null,4,"変更内容",null,null,null,null,null,null,{"$f":"Z28&AA28&AB28&AC28&AD28&AE28&AF28","v":"\n\n\n\n\n\n\n"},null,null,null,null,null,null,null,null,null,null,null,null,null,null,null,{"$f":"IF(入力シート!変更項目１<>リスト!$D$2,SUBSTITUTE(入力シート!変更項目１&Z29,\"（変更前の情報が必要）※\",\"\"),\"\")&\"\n\"","v":"\n"},{"$f":"IF(入力シート!変更項目２<>リスト!$D$2,SUBSTITUTE(入力シート!変更項目２&AA29,\"（変更前の情報が必要）※\",\"\"),\"\")&\"\n\"","v":"\n"},{"$f":"IF(入力シート!変更項目３<>リスト!$D$2,SUBSTITUTE(入力シート!変更項目３&AB29,\"（変更前の情報が必要）※\",\"\"),\"\")&\"\n\"","v":"\n"},{"$f":"IF(入力シート!変更項目４<>リスト!$D$2,SUBSTITUTE(入力シート!変更項目４&AC29,\"（変更前の情報が必要）※\",\"\"),\"\")&\"\n\"","v":"\n"},{"$f":"IF(入力シート!変更項目５<>リスト!$D$2,SUBSTITUTE(入力シート!変更項目５&AD29,\"（変更前の情報が必要）※\",\"\"),\"\")&\"\n\"","v":"\n"},{"$f":"IF(入力シート!変更項目６<>リスト!$D$2,SUBSTITUTE(入力シート!変更項目６&AE29,\"（変更前の情報が必要）※\",\"\"),\"\")&\"\n\"","v":"\n"},{"$f":"IF(入力シート!変更項目７<>リスト!$D$2,SUBSTITUTE(入力シート!変更項目７&AF29,\"（変更前の情報が必要）※\",\"\"),\"\")&\"\n\"","v":"\n"}]
[null,5,"備考",null,null,null,null,null,null,{"$f":"IF(入力シート!備考=\"\",\"\",入力シート!備考)","v":""},null,null,null,null,null,null,null,null,null,null,null,null,null,null,null,{"$f":"IF(入力シート!変更内容１=\"\",\"\",\"（\"&入力シート!変更内容１&\"）\")","v":""},{"$f":"IF(入力シート!変更内容２=\"\",\"\",\"（\"&入力シート!変更内容２&\"）\")","v":""},{"$f":"IF(入力シート!変更内容３=\"\",\"\",\"（\"&入力シート!変更内容３&\"）\")","v":""},{"$f":"IF(入力シート!変更内容４=\"\",\"\",\"（\"&入力シート!変更内容４&\"）\")","v":""},{"$f":"IF(入力シート!変更内容５=\"\",\"\",\"（\"&入力シート!変更内容５&\"）\")","v":""},{"$f":"IF(入力シート!変更内容６=\"\",\"\",\"（\"&入力シート!変更内容６&\"）\")","v":""},{"$f":"IF(入力シート!変更内容７=\"\",\"\",\"（\"&入力シート!変更内容７&\"）\")","v":""}]
[null,null,null,null,null,null,null,null,null,null,null,null,null,null,null,null,null,null,null,null,null,null,null,null,null,"↑数式埋め込んでます"]
[null,"注",1,"輸入者コードとは、JASTPROコード、税関発給コード、法人番号を指す。"]
[null,"注",2,"記名押印に代えて、署名することができる。"]

{"sheet":"DATA","index":5,"n_rows":1,"n_cols":20,"rows_kept":1,"cut":false,"hidden":true,"merged":[]}
["届出予定日","届出者住所","届出者電話番号","届出者名","届出者の英名","代表者氏名","輸入者コード","利用者コード","登録種別","暗証記号","入出力装置の設置場所","入出力装置の機器名称","入出力装置の型式番号","管理者名","管理者代表者氏名","管理者住所","電話番号","特定通知の同意の有無","備考","変更届日付"]